Cogmind - Beta 10.1 @@@ ROGUE MODE // 2020.09.24 @ 16:10:06 Player: 3.14 Result: Self-destructed Performance ------------- Evolutions (4) 2000 Regions Visited (11) 2200 Robots Destroyed (81) 405 Value Destroyed (1905) 1905 Prototype IDs (21) 420 Alien Tech Used (0) 0 Bonus (601) 601 TOTAL SCORE: 7531 Bonus ------- High Alert Combat Kills 12 Follower Combat Kills 428 Met Data Miner 300 Friendly Fire -139 Cogmind --------- Core Integrity 850/850 Matter 300/300 Energy 650/650 System Corruption 0% Temperature Cool (0) Movement Rolling (150) Ox5 Location -6/Factory Parts ------- > --- POWER (2) -------- Ion Engine F-cell Engine > --- PROPULSION (4) --- Medium Treads Medium Treads Armored Huge Wheel > --- UTILITY (7) ------ Large Storage Unit Large Storage Unit Humpback Makeshift Transmission Jammer Medium Reactive Plating Shield Generator > --- WEAPON (2) ------- Flak Gun KE Penetrator > --- INVENTORY (36) --- Light Fission Core Light Treads Light Treads Medium Treads Medium Treads Armored Huge Wheel Improved Heat Sink Advanced Heat Sink Large Storage Unit Humpback High-capacity Matter Pod (200) Advanced Signal Interpreter Advanced Targeting Computer Core Analyzer Armor Integrity Analyzer Improved Light Armor Plating Layered Light Armor Plating Layered Light Armor Plating Layered Light Armor Plating Layered Light Armor Plating Medium Reactive Plating Medium Reactive Plating Heavy EM Shotgun Heavy Particle Gun EM Pulse Cannon Heavy Particle Cannon Heavy Particle Cannon Ion Cannon Heavy Ion Cannon Improved Assault Rifle Gauss Rifle Mini Grenade Launcher Heavy Rocket Launcher Katana Peak State ------------ > --- POWER ------------ Ion Engine F-cell Engine > --- PROPULSION ------- Medium Treads Medium Treads Armored Huge Wheel > --- UTILITY ---------- Large Storage Unit Large Storage Unit Humpback Makeshift Transmission Jammer Medium Reactive Plating Shield Generator > --- WEAPON ----------- Cooled Plasma Cannon KE Penetrator > --- INVENTORY -------- Light Treads Light Treads Medium Treads Medium Treads Armored Huge Wheel Improved Heat Sink Advanced Heat Sink Large Storage Unit Humpback High-capacity Matter Pod Advanced Signal Interpreter Advanced Targeting Computer Core Analyzer Armor Integrity Analyzer Hardened Light Armor Plating Improved Light Armor Plating Layered Light Armor Plating Layered Light Armor Plating Layered Light Armor Plating Layered Light Armor Plating Medium Reactive Plating Medium Reactive Plating Heavy EM Shotgun Heavy Particle Gun EM Pulse Cannon Heavy Particle Cannon Heavy Particle Cannon Ion Cannon Heavy Ion Cannon Improved Assault Rifle Improved Assault Rifle Mini Grenade Launcher Heavy Rocket Launcher Katana [Rating: 60] Favorites ----------- Power Ion Engine Engine Ion Engine Propulsion Light Treads Treads Light Treads Wheel Armored Huge Wheel Utility Large Storage Unit Device Heat Sink Storage Large Storage Unit Protection Medium Reactive Plating Weapon Light Assault Rifle Energy Gun Heavy EM Shotgun Energy Cannon Heavy Particle Cannon Ballistic Gun Light Assault Rifle Launcher Grenade Launcher Build | -11 -10 -10 -10 -9 -8 -7 -7 -7 -7 -6 -6 ------- Run | Scr Mat Min Exi Min Mat Fac Low Low Dat Pro Fac Slots Evolved 8 | . . . . . 4 2 . . . . 2 Power 1 | . . . . . . . . . . . 1 Propulsion 2 | . . . . . 2 . . . . . . Utility 5 | . . . . . 2 2 . . . . 1 Weapon . | . . . . . . . . . . . . Parts Attached 88 | 6 18 . 1 3 30 9 8 . . 6 7 Power 9 | 1 4 . . 1 1 . . . . 1 1 Engine 9 | 1 4 . . 1 1 . . . . 1 1 Core . | . . . . . . . . . . . . Reactor . | . . . . . . . . . . . . Propulsion 16 | 2 3 . . . 10 1 . . . . . Treads 15 | 2 3 . . . 10 . . . . . . Leg . | . . . . . . . . . . . . Wheel 1 | . . . . . . 1 . . . . . Hover . | . . . . . . . . . . . . Flight . | . . . . . . . . . . . . Utility 19 | 1 6 . 1 . 5 3 1 . . . 2 Device 5 | . . . . . 1 1 1 . . . 2 Storage 10 | 1 6 . 1 . 2 . . . . . . Processor . | . . . . . . . . . . . . Hackware . | . . . . . . . . . . . . Protection 4 | . . . . . 2 2 . . . . . Artifact . | . . . . . . . . . . . . Weapon 44 | 2 5 . . 2 14 5 7 . . 5 4 Energy Gun 8 | 1 1 . . . 2 1 3 . . . . Energy Cannon 10 | . . . . . 3 3 . . . 3 1 Ballistic Gun 19 | 1 4 . . 1 7 . 3 . . . 3 Ballistic Cannon . | . . . . . . . . . . . . Launcher 7 | . . . . 1 2 1 1 . . 2 . Special Weapon . | . . . . . . . . . . . . Impact Weapon . | . . . . . . . . . . . . Slashing Weapon . | . . . . . . . . . . . . Piercing Weapon . | . . . . . . . . . . . . Special Melee Weapon . | . . . . . . . . . . . . Unidentified Prototypes 4 | . . . . . 2 1 . . . . 1 Parts Lost 5 | . 2 . . . 1 . 1 . . 1 . Power 2 | . 1 . . . . . . . . 1 . Propulsion . | . . . . . . . . . . . . Utility . | . . . . . . . . . . . . Weapon 3 | . 1 . . . 1 . 1 . . . . Highest Loss Streak 2 | . 2 . . . 1 . 1 . . 1 . Average Slot Usage (%) 88 | . 98 100 88 85 88 84 84 84 84 83 84 Engine 10 | . 13 14 14 14 9 7 7 7 7 6 12 Treads 23 | . 28 28 28 28 35 16 15 15 15 15 13 Wheel 2 | . . . . . . 6 7 7 7 7 6 Device 4 | . . . . . 8 7 7 7 7 7 12 Storage 20 | . 27 28 17 14 11 23 23 23 23 23 20 Protection 3 | . . . . . 6 7 7 7 7 7 6 Energy Gun 1 | . . . . . . . 8 . . . . Energy Cannon 3 | . . . . . 8 13 3 . . 12 1 Ballistic Gun 16 | . 27 28 28 27 8 . 2 15 15 2 11 Naked Turns . | . . . . . . . . . . . . Heaviest Build 165 | 10 40 39 87 89 129 152 149 149 149 152 165 Greatest Support 96 | 40 40 40 40 40 96 96 56 28 28 28 28 Greatest Overweight (x) 5 | . . . 2 2 1 5 5 5 5 5 5 Average Overweight (x) 2 | . . . 1 2 1 3 4 5 5 5 5 Largest Inventory Capacity 36 | 6 16 16 24 24 36 36 36 36 36 36 36 Average Capacity 25 | 5 11 16 20 24 25 36 36 36 36 36 36 Most Carried 36 | 4 16 16 20 24 33 36 36 36 36 36 36 Average Carried 24 | 1 10 16 16 22 23 35 35 35 36 35 35 Final Capacity 36 | 6 16 16 24 24 36 36 36 36 36 36 36 Final Carried 36 | 4 16 16 20 24 33 36 36 36 36 35 36 Class Distribution -------------------- 63% | Hauler-Mutant 27% | Mutant 9% | Scavenger-Mutant Dominant Class ---------------- Mutant | -10/Materials Mutant | -10/Mines Hauler-Mutant | -10/Exiles Hauler-Mutant | -9/Mines Scavenger-Mutant | -8/Materials Hauler-Mutant | -7/Factory Hauler-Mutant | -7/Lower Caves Hauler-Mutant | -7/Lower Caves Hauler-Mutant | -7/Data Miner Hauler-Mutant | -6/Proximity Caves Hauler-Mutant | -6/Factory Resources | -11 -10 -10 -10 -9 -8 -7 -7 -7 -7 -6 -6 ----------- Run | Scr Mat Min Exi Min Mat Fac Low Low Dat Pro Fac Matter Collected 1802 | 234 554 . 10 75 419 107 106 9 . 82 206 Remotely . | . . . . . . . . . . . . Salvage Created 2837 | . 565 . . 167 821 395 510 . . 146 233 Parts 134 | . 40 . . 11 36 18 14 . . 9 6 Haulers Intercepted 9 | . 2 . . . 3 3 . . . . 1 Recyclers Shooed 1 | . . . . . . 1 . . . . . Parts Field Recycled . | . . . . . . . . . . . . Retrieved Matter . | . . . . . . . . . . . . Parts Self-Destructed 17 | . . . . . . . 5 . . 12 . Prevented 3 | . . . . . . . 3 . . . . Kills | -11 -10 -10 -10 -9 -8 -7 -7 -7 -7 -6 -6 ------- Run | Scr Mat Min Exi Min Mat Fac Low Low Dat Pro Fac Combat Hostiles Destroyed 58 | . 14 . . 6 13 5 13 . . 7 . Guns 22 | . 14 . . 2 2 . 4 . . . . Cannons 8 | . . . . . 4 1 . . . 3 . AOE 27 | . . . . 4 7 4 8 . . 4 . Classes Destroyed 11 | . 4 . . 3 3 . 1 . . . . Worker 5 | . . . . 2 1 2 . . . . . Builder 1 | . . . . 1 . . . . . . . Hauler 9 | . 2 . . . 3 3 . . . . 1 Recycler 6 | . 1 . . . 3 1 . . . . 1 Watcher 1 | . . . . . 1 . . . . . . Swarmer 31 | . 7 . . 4 6 4 4 . . 6 . Grunt 15 | . 7 . . 1 2 . 4 . . 1 . Brawler 4 | . . . . 1 . . 3 . . . . Duelist 1 | . . . . . . . 1 . . . . Sentry 7 | . . . . . 5 1 1 . . . . Hunter 1 | . . . . . 1 . . . . . . Best Kill Streak 9 | . 5 . . 6 8 4 9 . . 3 2 Combat Bots Only 9 | . 5 . . 4 5 4 9 . . 3 . Max Kills in Single Turn 4 | . 2 . . 3 4 3 3 . . 3 1 Gunslinging 1 | . 1 . . . . . . . . . . Exploded 3 | . . . . 2 3 3 3 . . 3 . Melee . | . . . . . . . . . . . . Uniques/NPCs Destroyed . | . . . . . . . . . . . . Combat | -11 -10 -10 -10 -9 -8 -7 -7 -7 -7 -6 -6 -------- Run | Scr Mat Min Exi Min Mat Fac Low Low Dat Pro Fac Damage Taken 2288 | . 585 . . 170 490 325 601 . . 117 . Core 264 | . 85 . . 8 47 48 64 . . 12 . Absorbed by Shields . | . . . . . . . . . . . . Core Remaining (%) 83 | 100 . . . 62 91 . . . . 82 . Volleys Fired 140 | . 45 . . 9 28 17 18 . . 15 8 Largest 2 | . 2 . . 2 2 2 2 . . 2 2 Hottest 155 | . 70 . . 40 103 155 100 . . 150 61 Shots Fired 255 | . 90 . . 15 49 31 31 . . 23 16 Gun 168 | . 90 . . 12 21 . 27 . . 2 16 Cannon 66 | . . . . . 23 29 . . . 14 . Launcher 21 | . . . . 3 5 2 4 . . 7 . Special . | . . . . . . . . . . . . Kinetic 129 | . 78 . . 12 21 . . . . 2 16 Thermal 78 | . 12 . . . 23 29 . . . 14 . Explosive 21 | . . . . 3 5 2 4 . . 7 . Electromagnetic 27 | . . . . . . . 27 . . . . Robot Hit Streak 21 | . 13 . . 8 12 6 21 . . 5 7 Robot Miss Streak 4 | . 3 . . 1 2 1 3 . . 4 4 Penetration Max . | . . . . . . . . . . . . Secondary Targets 7 | . 4 . . 1 . . 2 . . . . Max Gunslinging Chain 1 | . 1 . . 1 . . 1 . . . . Shots Hit Robots 173 | . 58 . . 9 31 22 28 . . 13 12 Core Hits 149 | . 28 . . 13 32 14 32 . . 17 13 Critical Hits 5 | . 1 . . . 1 1 1 . . . 1 Critical Kills 1 | . 1 . . . . . . . . . . Critical Parts Destroyed 3 | . . . . . 1 . 1 . . . 1 Melee Attacks . | . . . . . . . . . . . . Impact . | . . . . . . . . . . . . Slashing . | . . . . . . . . . . . . Piercing . | . . . . . . . . . . . . Sneak Attacks . | . . . . . . . . . . . . Combat Hostiles . | . . . . . . . . . . . . Follow-up Attacks . | . . . . . . . . . . . . Damage Inflicted 5501 | . 632 . . 311 1445 723 1243 . . 896 251 Guns 1481 | . 610 . . 62 148 . 410 . . . 251 Cannons 1139 | . . . . . 461 503 . . . 175 . Explosions 2824 | . . . . 242 833 195 833 . . 721 . Melee . | . . . . . . . . . . . . Ramming 57 | . 22 . . 7 3 25 . . . . . Kinetic 986 | . 525 . . 62 148 . . . . . 251 Thermal 1496 | . 85 . . . 557 503 176 . . 175 . Explosive 2496 | . . . . 242 681 195 657 . . 721 . Electromagnetic 466 | . . . . . 56 . 410 . . . . Impact . | . . . . . . . . . . . . Slashing . | . . . . . . . . . . . . Piercing . | . . . . . . . . . . . . Highest Corruption . | . . . . . . . . . . . . Average Corruption . | . . . . . . . . . . . . Corruption Purged . | . . . . . . . . . . . . Overload Shots . | . . . . . . . . . . . . Overflow Damage 112 | . . . . . 32 3 25 . . 52 . Projectiles 3 | . . . . . . 3 . . . . . Explosions 109 | . . . . . 32 . 25 . . 52 . Melee . | . . . . . . . . . . . . Knockbacks . | . . . . . . . . . . . . Impact . | . . . . . . . . . . . . Kinetic . | . . . . . . . . . . . . Secondary . | . . . . . . . . . . . . Self-Inflicted Damage 169 | . . . . 2 . 5 162 . . . . Shots 6 | . . . . 1 . . 5 . . . . Rammed 7 | 1 3 . . . 1 2 . . . . . Targets Rammed 8 | 1 3 . . 1 1 2 . . . . . Kicked . | . . . . . . . . . . . . Crushed 1 | . . . . 1 . . . . . . . Highest Temperature 342 | . 54 . . 12 66 342 39 . . 108 . Average Temperature 47 | . 22 . . 7 17 117 17 . . 56 . Received Heat Transfer 480 | . 153 . . 42 135 54 90 . . 6 . Effects 1 | . . . . . . 1 . . . . . Energy Bleed 1 | . . . . . . 1 . . . . . Siege Activations . | . . . . . . . . . . . . Robots Corrupted 1 | . . . . . . . 1 . . . . Combat Hostiles 1 | . . . . . . . 1 . . . . Parts Fried 4 | . . . . . 2 . 2 . . . . Impact Corruptions . | . . . . . . . . . . . . Robots Melted . | . . . . . . . . . . . . Combat Hostiles . | . . . . . . . . . . . . Parts Melted 4 | . . . . . 2 2 . . . . . Heat Transferred 2512 | . 235 . . . 1000 818 200 . . 259 . Parts Sabotaged . | . . . . . . . . . . . . Parts Stolen . | . . . . . . . . . . . . Parts Stripped . | . . . . . . . . . . . . Power Chain Reactions 7 | . . . . . 5 . 2 . . . . Missiles Intercepted . | . . . . . . . . . . . . Alert | -11 -10 -10 -10 -9 -8 -7 -7 -7 -7 -6 -6 ------- Run | Scr Mat Min Exi Min Mat Fac Low Low Dat Pro Fac Peak Influence 368 | . 254 5 . 155 338 357 . . . . 368 Initial 270 | . . 5 . . . 91 . . . . 270 Average 137 | . 83 5 . 73 153 215 . . . . 282 Maximum Alert Level 1 | . 1 . . . 1 1 . . . . 1 Low Security (%) 67 | 100 90 100 . 100 58 40 . . . . 6 Level 1 32 | . 9 . . . 41 60 . . . . 93 Level 2 . | . . . . . . . . . . . . Level 3 . | . . . . . . . . . . . . Level 4 . | . . . . . . . . . . . . Level 5 . | . . . . . . . . . . . . High Security . | . . . . . . . . . . . . Max Security . | . . . . . . . . . . . . Squads Dispatched 6 | . 2 . . . . . . . . . 4 Investigation 2 | . 1 . . . . . . . . . 1 Extermination . | . . . . . . . . . . . . Reinforcement 4 | . 1 . . . . . . . . . 3 Assault . | . . . . . . . . . . . . Garrison . | . . . . . . . . . . . . Intercept . | . . . . . . . . . . . . Construction Impeded . | . . . . . . . . . . . . Haulers Reinforced . | . . . . . . . . . . . . Stealth | -11 -10 -10 -10 -9 -8 -7 -7 -7 -7 -6 -6 --------- Run | Scr Mat Min Exi Min Mat Fac Low Low Dat Pro Fac Distress Signals 3 | . 1 . . . 2 . . . . . . Communications Jammed . | . . . . . . . . . . . . Distress Signals . | . . . . . . . . . . . . Times Spotted 91 | . 23 . . 6 21 7 14 . . 14 6 Peak Tracking Total 9 | . 3 . . 4 9 4 9 . . 4 1 Tactical Retreats 5 | . 2 . . . 1 . 1 . . 1 . Traps | -11 -10 -10 -10 -9 -8 -7 -7 -7 -7 -6 -6 ------- Run | Scr Mat Min Exi Min Mat Fac Low Low Dat Pro Fac Traps Triggered 3 | . 1 . . 1 1 . . . . . . Indirectly . | . . . . . . . . . . . . Trap Hack Attempts . | . . . . . . . . . . . . Triggered . | . . . . . . . . . . . . Disarmed . | . . . . . . . . . . . . Reprogrammed . | . . . . . . . . . . . . Reused . | . . . . . . . . . . . . Traps Extracted . | . . . . . . . . . . . . Installed . | . . . . . . . . . . . . Triggered . | . . . . . . . . . . . . Machines | -11 -10 -10 -10 -9 -8 -7 -7 -7 -7 -6 -6 ---------- Run | Scr Mat Min Exi Min Mat Fac Low Low Dat Pro Fac Machines Disabled 4 | . . . . . 1 3 . . . . . Max in Single Turn 3 | . . . . . 1 3 . . . . . Machines Sabotaged . | . . . . . . . . . . . . Garrisons Compromised . | . . . . . . . . . . . . Overloaded Fab Kills . | . . . . . . . . . . . . Fab Network Shutdowns . | . . . . . . . . . . . . Hacking | -11 -10 -10 -10 -9 -8 -7 -7 -7 -7 -6 -6 --------- Run | Scr Mat Min Exi Min Mat Fac Low Low Dat Pro Fac Machines Accessed 27 | . 7 . 1 1 4 4 . . 4 . 6 Terminals 12 | . 6 . . . 2 2 . . . . 2 Fabricators 1 | . . . . . . . . . . . 1 Repair Stations 3 | . . . . . 2 . . . . . 1 Recycling Units 2 | . 1 . . . . . . . . . 1 Scanalyzers 2 | . . . . . . 1 . . . . 1 Garrison Access 1 | . . . . . . 1 . . . . . Total Hacks 101 | . 29 . 1 1 16 9 . . 25 . 20 Successful 72 | . 18 . 1 1 11 3 . . 25 . 13 Failed 29 | . 11 . . . 5 6 . . . . 7 Catastrophic 8 | . 3 . . . 1 2 . . . . 2 Database Lockouts . | . . . . . . . . . . . . Manual 33 | . 26 . . . 4 . . . . . 3 Terminals 45 | . 28 . . . 5 6 . . . . 6 Fabricators 6 | . . . . . . . . . . . 6 Repair Stations 16 | . . . . . 11 . . . . . 5 Recycling Units 2 | . 1 . . . . . . . . . 1 Scanalyzers 4 | . . . . . . 2 . . . . 2 Garrison Access 1 | . . . . . . 1 . . . . . Terminal Hacks 45 | . 11 . 1 1 3 1 . . 25 . 3 Record 12 | . . . 1 . . . . . 11 . . Part Schematic 7 | . 1 . . . 1 . . . 5 . . Robot Schematic 6 | . . . . . . . . . 6 . . Robot Analysis 2 | . 2 . . . . . . . . . . Prototype ID Bank 8 | . 4 . . . 1 . . . 3 . . Open Door 1 | . . . . 1 . . . . . . . Terminal Index 1 | . 1 . . . . . . . . . . Unreport Threat 2 | . 1 . . . 1 . . . . . . Locate Traps 4 | . 1 . . . . 1 . . . . 2 Recall Reinforcements 1 | . . . . . . . . . . . 1 Zone Layout 1 | . 1 . . . . . . . . . . Fabricator Hacks 4 | . . . . . . . . . . . 4 Load Schematic 3 | . . . . . . . . . . . 3 Build 1 | . . . . . . . . . . . 1 Repair Station Hacks 11 | . . . . . 7 . . . . . 4 Scan Component 6 | . . . . . 4 . . . . . 2 Repair 5 | . . . . . 3 . . . . . 2 Recycling Unit Hacks . | . . . . . . . . . . . . Scanalyzer 3 | . . . . . . 2 . . . . 1 Insert Component 2 | . . . . . . 1 . . . . 1 Analyze 1 | . . . . . . 1 . . . . . Garrison Access Hacks . | . . . . . . . . . . . . Unauthorized Hacks 9 | . 7 . . . 1 . . . . . 1 Terminals 7 | . 6 . . . 1 . . . . . . Track 3 | . 3 . . . . . . . . . . Botnet 3 | . 2 . . . 1 . . . . . . Operators 1 | . 1 . . . . . . . . . . Fabricators . | . . . . . . . . . . . . Repair Stations . | . . . . . . . . . . . . Recycling Units 2 | . 1 . . . . . . . . . 1 Tunnel 2 | . 1 . . . . . . . . . 1 Scanalyzers . | . . . . . . . . . . . . Garrison Access . | . . . . . . . . . . . . Data Cores Recovered . | . . . . . . . . . . . . Used . | . . . . . . . . . . . . Hacking Detections 16 | . 4 . . . 4 4 . . . . 4 Full Trace Events 1 | . 1 . . . . . . . . . . Feedback Events . | . . . . . . . . . . . . Feedback Blocked . | . . . . . . . . . . . . Robot Schematics Acquired 6 | . . . . . . . . . 6 . . Robots Built 1 | . . . . . . . . . . . 1 Matter 318 | . . . . . . . . . . . 318 Time 169 | . . . . . . . . . . . 169 Total Robot Build Rating 6 | . . . . . . . . . . . 6 Part Schematics Acquired 8 | . 1 . . . 1 1 . . 5 . . Parts Built . | . . . . . . . . . . . . Matter . | . . . . . . . . . . . . Time . | . . . . . . . . . . . . Total Part Build Rating . | . . . . . . . . . . . . Parts Repaired 5 | . . . . . 3 . . . . . 2 Time 160 | . . . . . 78 . . . . . 82 Parts Recycled . | . . . . . . . . . . . . Recycled Matter . | . . . . . . . . . . . . Retrieved Matter . | . . . . . . . . . . . . Retrieved Components . | . . . . . . . . . . . . Parts Scanalyzed 2 | . . . . . . 1 . . . . 1 Part Schematics Acquired 1 | . . . . . . 1 . . . . . Parts Damaged . | . . . . . . . . . . . . Bothacking | -11 -10 -10 -10 -9 -8 -7 -7 -7 -7 -6 -6 ------------ Run | Scr Mat Min Exi Min Mat Fac Low Low Dat Pro Fac Used RIF Installer . | . . . . . . . . . . . . Robots Hacked . | . . . . . . . . . . . . Non-combat . | . . . . . . . . . . . . Combat . | . . . . . . . . . . . . Robot Hacks Applied . | . . . . . . . . . . . . Relay Couplers Released . | . . . . . . . . . . . . Robots Rewired 2 | . . . . . . . 2 . . . . Allies Hacked . | . . . . . . . . . . . . Hacks Repelled . | . . . . . . . . . . . . Allies | -11 -10 -10 -10 -9 -8 -7 -7 -7 -7 -6 -6 -------- Run | Scr Mat Min Exi Min Mat Fac Low Low Dat Pro Fac Total Allies 7 | . . . . 3 . . 2 . . 1 1 Largest Group 3 | . . . . 3 3 . 2 2 2 3 3 Highest-Rated Group 186 | . . . . 40 40 . 52 52 52 146 186 Highest-Rated Ally 94 | . . . . 16 16 . 32 32 32 94 94 Total Orders 2 | . . . . 2 . . . . . . . STAY 1 | . . . . 1 . . . . . . . FOLLOW 1 | . . . . 1 . . . . . . . Ally Attacks 60 | . . . . . 20 . . . . 30 10 Total Damage 1073 | . . . . . 139 . . . . 610 324 Kills 14 | . . . . . 3 . . . . 8 3 Allies Corrupted . | . . . . . . . . . . . . Allies Melted . | . . . . . . . . . . . . Intel | -11 -10 -10 -10 -9 -8 -7 -7 -7 -7 -6 -6 ------- Run | Scr Mat Min Exi Min Mat Fac Low Low Dat Pro Fac Robot Analysis Total 2 | . 2 . . . . . . . . . . Derelict Logs Recovered 5 | . . . . 2 . . 1 1 . 1 . Drone Launches . | . . . . . . . . . . . . Drone Recoveries . | . . . . . . . . . . . . Exploration | -11 -10 -10 -10 -9 -8 -7 -7 -7 -7 -6 -6 ------------- Run | Scr Mat Min Exi Min Mat Fac Low Low Dat Pro Fac Turns Passed 5969 | 87 1317 52 497 724 753 445 554 399 128 394 619 Spaces Moved 3133 | 46 701 33 260 345 287 239 311 261 84 231 335 Core 1 | 1 . . . . . . . . . . . Treads 1731 | 45 701 33 260 345 287 28 32 . . . . Legs . | . . . . . . . . . . . . Wheels 1401 | . . . . . . 211 279 261 84 231 335 Hover . | . . . . . . . . . . . . Flight . | . . . . . . . . . . . . Fastest Speed 50 | 50 160 160 160 200 180 140 150 150 150 150 150 Average Speed 163 | 157 160 160 184 200 180 146 155 150 150 150 150 Slowest Speed 200 | 160 160 160 200 200 180 200 200 150 150 150 150 Overloaded Moves . | . . . . . . . . . . . . Propulsion Burnouts . | . . . . . . . . . . . . Robots Hopped . | . . . . . . . . . . . . Cave-ins Triggered . | . . . . . . . . . . . . Exploration Rate (%) 42 | 3 85 14 60 82 37 9 48 49 70 43 12 Regions Visited 11 Branch Regions 7 Pre-discovered Areas 6 | . 1 . 1 2 . . . . 1 . 1 Known Exits Taken 1 | . . . . . . . . . . 1 . Unknown Exits Taken 10 | 1 1 1 1 1 1 1 1 1 1 . . Scrap Searched 5 | . . . . 1 . . 2 2 . . . Spaces Dug 12 | . . . . 6 1 . 5 . . . . Terrain Destroyed 151 | . . . . 7 36 17 34 . . 57 . Melee . | . . . . . . . . . . . . Projectile 6 | . . . . . 5 . . . . 1 . AOE 145 | . . . . 7 31 17 34 . . 56 . Terrain Rammed . | . . . . . . . . . . . . Walls Destroyed . | . . . . . . . . . . . . Machines Disabled . | . . . . . . . . . . . . Actions | -11 -10 -10 -10 -9 -8 -7 -7 -7 -7 -6 -6 --------- Run | Scr Mat Min Exi Min Mat Fac Low Low Dat Pro Fac Total 3736 | 57 816 32 279 365 482 307 351 270 86 253 438 Wait 197 | 1 11 . . 3 83 17 2 4 3 2 71 Move 3122 | 45 700 32 259 344 286 238 310 260 83 230 335 Hop . | . . . . . . . . . . . . Pick Up 103 | 4 21 . 16 4 30 13 3 3 . . 9 Fast Attach 22 | 6 4 . 1 . 5 2 1 . . . 3 Attach 13 | . 1 . . . 7 3 . . . 1 1 Detach . | . . . . . . . . . . . . Swap 54 | . 13 . . 3 19 4 7 . . 5 3 Drop 70 | . 18 . 3 1 23 11 3 3 . . 8 Fire 140 | . 45 . . 9 28 17 18 . . 15 8 Melee . | . . . . . . . . . . . . Ram 1 | . . . . . . 1 . . . . . Kick . | . . . . . . . . . . . . Crush 7 | 1 3 . . 1 1 1 . . . . . Escape Stasis . | . . . . . . . . . . . . Rewire 7 | . . . . . . . 7 . . . . Trap . | . . . . . . . . . . . . Miscellaneous . | . . . . . . . . . . . . Route ------- -11/Scrapyard -10/Materials (discovered 4 exits: [*Mat x2] / [*Min x2]) -10/Mines -10/Exiles -9/Mines -8/Materials -7/Factory -7/Lower Caves -7/Lower Caves (discovered 2 exits: Fac / *Dat) -7/Data Miner -6/Proximity Caves -6/Factory History --------- Turn | Location | Event 42 | -11/Scrapyard | Discovered new exit (range 15) 88 | -11/Scrapyard | Entered Materials 196 | -10/Materials | Discovered new exit (range 16) 309 | -10/Materials | Build established: Mutant 312 | -10/Materials | Discovered new exit (range 16) 822 | -10/Materials | Discovered new exit (range 4) 1215 | -10/Materials | Discovered new exit (range 15) 1405 | -10/Materials | Entered Mines 1450 | -10/Mines | Deemed a non-threat by the Exiles lab entrance 1450 | -10/Mines | Discovered new exit (range 5) 1457 | -10/Mines | Entered Exiles 1497 | -10/Exiles | Met 8R-AWN 1525 | -10/Exiles | Met EX-HEX 1730 | -10/Exiles | Met EX-DEC 1766 | -10/Exiles | Learned location of Zion (-6) 1808 | -10/Exiles | Met EX-BIN 1921 | -10/Exiles | Build established: Hauler-Mutant 1934 | -10/Exiles | Discovered new exit (range 10) 1954 | -10/Exiles | Entered Mines 2526 | -9/Mines | Assisted by bots powering up and referring to "LRC-V3" 2572 | -9/Mines | Discovered new exit (range 7) 2623 | -9/Mines | Met a Derelict who couldn't figure out how to use a Trap Extractor 2678 | -9/Mines | Entered Materials 2678 | -8/Materials | Accompanied by 3 allies 2678 | -8/Materials | Evolved 4 slots: Propulsion x2, Utility x2 2806 | -8/Materials | Repaired Lgt. Assault Rifle 2834 | -8/Materials | Repaired Lgt. Treads 2861 | -8/Materials | Repaired Lgt. Treads 3155 | -8/Materials | Build established: Scavenger-Mutant 3342 | -8/Materials | Discovered new exit (range 15) 3431 | -8/Materials | Entered Factory 3431 | -7/Factory | Evolved 2 slots: Utility x2 3585 | -7/Factory | Build established: Hauler-Mutant 3708 | -7/Factory | Discovered new exit (range 16) 3876 | -7/Factory | Entered Lower Caves 4293 | -7/Lower Caves | Learned Factory trap positions 4302 | -7/Lower Caves | Attracted the attention of an 0b10 outpost 4343 | -7/Lower Caves | Destroyed 9 combat bots 4409 | -7/Lower Caves | Discovered new exit (range 11) 4430 | -7/Lower Caves | Entered another Lower Caves area 4430 | -7/Lower Caves | Accompanied by 2 allies 4679 | -7/Lower Caves | Identified exit to Factory 4778 | -7/Lower Caves | Spotted B-75 Beast 4802 | -7/Lower Caves | Discovered new exit (range 16) 4829 | -7/Lower Caves | Entered Data Miner 4829 | -7/Data Miner | Accompanied by 2 allies 4829 | -7/Data Miner | Discovered new exit (range 6) 4858 | -7/Data Miner | Met Data Miner 4891 | -7/Data Miner | Learned location of Section 7 (-2) 4891 | -7/Data Miner | Acquired the access code to Warlord's prototype stash 4913 | -7/Data Miner | Received God Mode back door access code from Data Miner 4957 | -7/Data Miner | Entered Proximity Caves 4957 | -6/Proximity Caves | Accompanied by 2 allies 5013 | -6/Proximity Caves | Escorted by Enhanced Grunt 5340 | -6/Proximity Caves | Discovered exit to Factory (range 4) 5351 | -6/Proximity Caves | Entered Factory 5351 | -6/Factory | Accompanied by 2 allies 5351 | -6/Factory | Evolved 2 slots: Power x1, Utility x1 5352 | -6/Factory | Loaded intel: 89 trap records 5495 | -6/Factory | Repaired EM Pulse Cannon 5541 | -6/Factory | Repaired Hvy. Rocket Launcher 5544 | -6/Factory | Fabricated I-47 Archangel? 5681 | -6/Factory | Incoming investigation squad redirected 5970 | -6/Factory | Self-destructed Last Messages --------------- 05826_ Slug penetrates A-15 Conveyor. 05826_ A-15 Conveyor destroyed. 05830_ Slug penetrates Guardian 4a. 05832_ Slug penetrates H-66 Slayer. 05835_ Slug penetrates Guardian 4a. 05835_ Guardian 4a destroyed. 05836_ H-66 Slayer destroyed. 05837_ R-10 Processor collects Lgt. Treads. 05838_ Slug penetrates R-10 Processor. 05838_ R-10 Processor destroyed. 05843_ Acquired 139 matter. 05844_ U-05 Engineer lays Concrete. 05846_ Acquired 16 matter. 05850_ Dropped Imp. Heat Sink. 05850_ Acquired Imp. Heat Sink. 05870_ Dropped Imp. Assault Rifle. 05870_ Acquired Gauss Rifle. 05872_ Dropped Hrd. Light Armor Plating. 05873_ Acquired Lgt. Fission Core. 05952_ Enhanced Grunt destroyed. Map ----- +----------------------------------------------------+ | ??????????????????^^^^^??????????# ? ????????? | | ?????????????????????????????????# """ ????????? | | ?????????????????????????????????# "Y" ????????? | | ?????????????????????????????????# " " ???????? | | ?????????????????????????????????# " " #?????? | | ?????????????????????????????????# " " #?????? | | ?????????????????????????????????# " " #?????? | | ?????????????????????????????????# " " #?????? | | ?????????????????????????????????# " " #?????? | | ?????????????????????????????????# " " #?????? | | ?????????????????????????????????# " " #?????? | | ?????????????????# ??????????????# " " #?????? | | ?????????????????# ?????????????# " " #?????? | | ?????????????????# ????????????# ! #?????? | | ?????????????????# ???????????# ! ####### | | ?????????????????# ??????????# # | | ^^?????????????### ###########+#####+### | | ?????????????? ^ | | ?????????????? / ^^ | | ????????????? | | ????????????? * " " | | ????????????? " " | | ?????????????######+####### " " ##### | | ?????????????# # ^ " " ""??# | | ?????????????# ] " " " # " " " ""#?#####+# | | ?????????????# " " " @# "" " " F"#???? | | ?????????????#= " " " m# G " " ""??? | | ?????????????# " " " + "" " " #??# | | ?????????????# " " " # =" " " #??# | | ?????????????# " " " # !%! ????# | | ?????????????# """ " " " + ] ] ???# | | ?????????????# "R " " " #### *% ???# | | ?????????????#???? " " " #??? = % ???# | | ?????????????????? #??? " ???# | | ?????????????????? #??? #??# | | ???????????????????########???? ???# | | ??????????????????????????????? ???# | | ???????????????????????????????? ????######## | | ?????????????????????????????????#+###???????????? | | ?????????????????????????????????????????????????? | | ?????????????????????????????????????????????????? | | ?????????????????????????????????????????????????? | | ?????????????????????????????????????????????????? | | ?????????????????????????????????????????????????? | | ?????????????????????????????????????????????????? | | ?????????????????????????????????????????????????? | | ?????????????????????????????????????????????????? | | ?????????????????????????????????????????????????? | | ?????????????????????????????????????????????????? | | ?????????????????????????????????????????????????? | +----------------------------------------------------+ Best States ------------- Heat Dissipation 51 Energy Generation 24 Energy Capacity 650 Matter Stores 300 Matter Capacity 300 Sight Range 16 Terrain Scan Density 10 Jamming Range 14 Armor Coverage 225 Resistance: KI 30 Evasion (%) 40 Recoil Reduction 4 Item Schematics ----------------- Hcp. Storage Unit | -10/Materials | Hacked Arm. Treads | -8/Materials | Hacked Humpback | -7/Factory | Scanalyzed Combat Drone Bay | -7/Data Miner | Free Lgt. Regenerative Plating | -7/Data Miner | Free Exp. Sensor Array | -7/Data Miner | Free Cmb. Gravmag System | -7/Data Miner | Free Exp. ECM Suite | -7/Data Miner | Free Robot Schematics ------------------ S-27 Virus | -7/Data Miner | Free G-50 Soldier | -7/Data Miner | Free L-41 Fighter | -7/Data Miner | Free P-70 Sage | -7/Data Miner | Free I-36 Angel | -7/Data Miner | Free I-47 Archangel | -7/Data Miner | Free Fabricated ------------ I-47 Archangel | x1 | -6/Factory Alien Tech Used ----------------- None Achievements -------------- None Challenges ------------ None Game ------ Seed ModifiedFissionBay Manual? 0 Play Time 00:32:41 Cumulative 615.0 hours Start 2020.09.24 @ 15:39:35 End 2020.09.24 @ 16:10:06 Sessions 1 Manual Loads 0 Difficulty Rogue Special Mode None Game No. 946 Rogue 946 Adventurer 0 Explorer 0 Win Type - Total 58 Types 37/1/7/10/3/0/0/0/0 Lore% 93 Gallery% 94 Achievement% 82 Wizard Run 0 Options --------- ASCII 1 Keyboard 0 Movement Numpad Keybinds 0 Fullscreen 0 Font 14/SmallcapsGlow Map View 76x50 Tactical HUD 1 Map Filters NONE Filters NONE Steam 1 RUN: 1c275c75-6ef3-4296-b51d-de47fe64635a